Workbook

Sheet паспорт
A1: ПАТ "УКРТРАНСГАЗ" | G1: ПАСПОРТ ФІЗИКО-ХІМІЧНИХ ПОКАЗНИКІВ ПРИРОДНОГО ГАЗУ № 655
A2: Філія "УМГ "ХАРКІВТРАНСГАЗ" | G2: переданого Сєвєродонецьким ЛВУМГ та прийнятого ПАТ "Луганськгаз"
A3: Сєвєродонецьке ЛВУМГ | G3: Маршрут № 655
A4: Вимірювальна хіміко-аналітична лабораторія
A5: Свідоцтво № РЬ089/2014 чинно до 06.06.2017 р. | K5: по газопроводу "Ставрополь-Москва,Краснодарский край-Серпухов" | V5: за період з | X5: 01.03.2017 р. | Z5: по | AA5: 31.03.2017 р.
A7: Число місяця | B7: Компонентний склад, мол. % | N7: Фізико-хімічні показники газу обчислені на основі компонентного складу, 101,325 кПа | X7: Температура точки роси за вологою (Р = 3.92 МПа), °С | Y7: Температура точки роси за вуглеводнями, °С | Z7: Вміст сірководню, г/м3 | AA7: Вміст меркаптанової сірки, г/м3 | AB7: Вміст механічних домішок, г/м3
N8: Густина абсолютна, кг/м3,при 20 °С, | O8: Температура вимірювання/згоряння при 20/25°С
B9: метан, С1 | C9: етан, С2 | D9: пропан, С3 | E9: ізо-бутан, і-С4 | F9: н-бутан, н-С4 | G9: нео-пентан, нео-С5 | H9: ізо-пентан, і-С5 | I9: н-пентан, н-С5 | J9: гексани та вищі, С6+ | K9: кисень, О2 | L9: азот, N2 | M9: діоксид вуглецю, CО2 | O9: Теплота згоряння нижча | R9: Теплота згоряння вища | U9: Число Воббе вище
O10: ккал/м³ | P10: МДж/м³ | Q10: кВт⋅год/м³ | R10: ккал/м³ | S10: МДж/м³ | T10: кВт⋅год/м³ | U10: ккал/м³ | V10: МДж/м³ | W10: кВт⋅год/м³
A11: 1 | O11: =P11*238.8459 -> 8132.153549 | P11: 34.0477 | Q11: =P11/3.6 -> 9.457694444 | R11: =S11*238.8459 -> 9010.676539 | S11: 37.7259 | T11: =S11/3.6 -> 10.47941667 | U11: =V11/0.0041868 -> 11694.22948 | V11: 48.9614 | W11: =V11/3.6 -> 13.60038889 | AC11: =SUM(B11:M11)+$K$42+$N$42 -> 0
A12: 2 | O12: 8132.153549 | P12: 34.0477 | Q12: 9.457694444 | R12: 9010.676539 | S12: 37.7259 | T12: 10.47941667 | U12: 11694.22948 | V12: 48.9614 | W12: 13.60038889 | AC12: 0
A13: 3 | O13: 8132.153549 | P13: 34.0477 | Q13: 9.457694444 | R13: 9010.676539 | S13: 37.7259 | T13: 10.47941667 | U13: 11694.22948 | V13: 48.9614 | W13: 13.60038889 | AC13: 0 | AD13: =IF(AC13=100,"ОК"," ") -> 
A14: 4 | O14: 8132.153549 | P14: 34.0477 | Q14: 9.457694444 | R14: 9010.676539 | S14: 37.7259 | T14: 10.47941667 | U14: 11694.22948 | V14: 48.9614 | W14: 13.60038889 | AC14: 0 | AD14: =IF(AC14=100,"ОК"," ") -> 
A15: 5 | O15: 8132.153549 | P15: 34.0477 | Q15: 9.457694444 | R15: 9010.676539 | S15: 37.7259 | T15: 10.47941667 | U15: 11694.22948 | V15: 48.9614 | W15: 13.60038889 | AC15: 0
A16: 6 | B16: 94.5217 | C16: 2.5009 | D16: 0.6407 | E16: 0.0777 | F16: 0.1002 | G16: 0.0025 | H16: 0.0226 | I16: 0.019 | J16: 0.0266 | K16: 0.0109 | L16: 1.8605 | M16: 0.2167 | N16: 0.7072 | O16: =P16*238.8459 -> 8105.259501 | P16: 33.9351 | Q16: =P16/3.6 -> 9.426416667 | R16: =S16*238.8459 -> 8983.065953 | S16: 37.6103 | T16: =S16/3.6 -> 10.44730556 | U16: =V16/0.0041868 -> 11723.29703 | V16: 49.0831 | W16: =V16/3.6 -> 13.63419444 | Z16: 0.0001 | AA16: 0.003 | AB16: відс | AC16: 100 | AD16: ОК
A17: 7 | O17: =P17*238.8459 -> 8105.259501 | P17: 33.9351 | Q17: =P17/3.6 -> 9.426416667 | R17: =S17*238.8459 -> 8983.065953 | S17: 37.6103 | T17: =S17/3.6 -> 10.44730556 | U17: =V17/0.0041868 -> 11723.29703 | V17: 49.0831 | W17: =V17/3.6 -> 13.63419444 | AC17: 0
A18: 8 | O18: 8105.259501 | P18: 33.9351 | Q18: 9.426416667 | R18: 8983.065953 | S18: 37.6103 | T18: 10.44730556 | U18: 11723.29703 | V18: 49.0831 | W18: 13.63419444 | AC18: 0
A19: 9 | O19: 8105.259501 | P19: 33.9351 | Q19: 9.426416667 | R19: 8983.065953 | S19: 37.6103 | T19: 10.44730556 | U19: 11723.29703 | V19: 49.0831 | W19: 13.63419444 | AC19: 0
A20: 10 | O20: 8105.259501 | P20: 33.9351 | Q20: 9.426416667 | R20: 8983.065953 | S20: 37.6103 | T20: 10.44730556 | U20: 11723.29703 | V20: 49.0831 | W20: 13.63419444 | AC20: 0
A21: 11 | O21: 8105.259501 | P21: 33.9351 | Q21: 9.426416667 | R21: 8983.065953 | S21: 37.6103 | T21: 10.44730556 | U21: 11723.29703 | V21: 49.0831 | W21: 13.63419444 | AC21: 0
A22: 12 | O22: 8105.259501 | P22: 33.9351 | Q22: 9.426416667 | R22: 8983.065953 | S22: 37.6103 | T22: 10.44730556 | U22: 11723.29703 | V22: 49.0831 | W22: 13.63419444 | AC22: 0
A23: 13 | B23: 92.7549 | C23: 3.3734 | D23: 0.7614 | E23: 0.0719 | F23: 0.0963 | G23: 0.0019 | H23: 0.0171 | I23: 0.0135 | J23: 0.0141 | K23: 0.0096 | L23: 2.6615 | M23: 0.2244 | N23: 0.717 | O23: =P23*238.8459 -> 8101.700697 | P23: 33.9202 | Q23: =P23/3.6 -> 9.422277778 | R23: =S23*238.8459 -> 8975.828922 | S23: 37.58 | T23: =S23/3.6 -> 10.43888889 | U23: =V23/0.0041868 -> 11634.78074 | V23: 48.7125 | W23: =V23/3.6 -> 13.53125 | AC23: 100 | AD23: ОК
A24: 14 | O24: =P24*238.8459 -> 8101.700697 | P24: 33.9202 | Q24: =P24/3.6 -> 9.422277778 | R24: =S24*238.8459 -> 8975.828922 | S24: 37.58 | T24: =S24/3.6 -> 10.43888889 | U24: =V24/0.0041868 -> 11634.78074 | V24: 48.7125 | W24: =V24/3.6 -> 13.53125 | AC24: 0
A25: 15 | O25: 8101.700697 | P25: 33.9202 | Q25: 9.422277778 | R25: 8975.828922 | S25: 37.58 | T25: 10.43888889 | U25: 11634.78074 | V25: 48.7125 | W25: 13.53125 | AC25: 0
A26: 16 | O26: 8101.700697 | P26: 33.9202 | Q26: 9.422277778 | R26: 8975.828922 | S26: 37.58 | T26: 10.43888889 | U26: 11634.78074 | V26: 48.7125 | W26: 13.53125 | AC26: 0
A27: 17 | O27: 8101.700697 | P27: 33.9202 | Q27: 9.422277778 | R27: 8975.828922 | S27: 37.58 | T27: 10.43888889 | U27: 11634.78074 | V27: 48.7125 | W27: 13.53125 | AC27: 0
A28: 18 | O28: 8101.700697 | P28: 33.9202 | Q28: 9.422277778 | R28: 8975.828922 | S28: 37.58 | T28: 10.43888889 | U28: 11634.78074 | V28: 48.7125 | W28: 13.53125 | AC28: 0
A29: 19 | O29: 8101.700697 | P29: 33.9202 | Q29: 9.422277778 | R29: 8975.828922 | S29: 37.58 | T29: 10.43888889 | U29: 11634.78074 | V29: 48.7125 | W29: 13.53125 | AC29: 0
A30: 20 | O30: 8101.700697 | P30: 33.9202 | Q30: 9.422277778 | R30: 8975.828922 | S30: 37.58 | T30: 10.43888889 | U30: 11634.78074 | V30: 48.7125 | W30: 13.53125 | AC30: 0 | AD30: =IF(AC30=100,"ОК"," ") -> 
A31: 21 | O31: 8101.700697 | P31: 33.9202 | Q31: 9.422277778 | R31: 8975.828922 | S31: 37.58 | T31: 10.43888889 | U31: 11634.78074 | V31: 48.7125 | W31: 13.53125 | AC31: 0
A32: 22 | O32: 8101.700697 | P32: 33.9202 | Q32: 9.422277778 | R32: 8975.828922 | S32: 37.58 | T32: 10.43888889 | U32: 11634.78074 | V32: 48.7125 | W32: 13.53125 | AC32: 0
A33: 23 | O33: 8101.700697 | P33: 33.9202 | Q33: 9.422277778 | R33: 8975.828922 | S33: 37.58 | T33: 10.43888889 | U33: 11634.78074 | V33: 48.7125 | W33: 13.53125 | AC33: 0 | AD33: =IF(AC33=100,"ОК"," ") -> 
A34: 24 | O34: 8101.700697 | P34: 33.9202 | Q34: 9.422277778 | R34: 8975.828922 | S34: 37.58 | T34: 10.43888889 | U34: 11634.78074 | V34: 48.7125 | W34: 13.53125 | AC34: 0
A35: 25 | O35: 8101.700697 | P35: 33.9202 | Q35: 9.422277778 | R35: 8975.828922 | S35: 37.58 | T35: 10.43888889 | U35: 11634.78074 | V35: 48.7125 | W35: 13.53125 | AC35: 0
A36: 26 | O36: 8101.700697 | P36: 33.9202 | Q36: 9.422277778 | R36: 8975.828922 | S36: 37.58 | T36: 10.43888889 | U36: 11634.78074 | V36: 48.7125 | W36: 13.53125 | AC36: 0
A37: 27 | O37: 8101.700697 | P37: 33.9202 | Q37: 9.422277778 | R37: 8975.828922 | S37: 37.58 | T37: 10.43888889 | U37: 11634.78074 | V37: 48.7125 | W37: 13.53125 | AC37: 0
A38: 28 | B38: 95.0075 | C38: 2.4552 | D38: 0.7148 | E38: 0.0988 | F38: 0.1117 | G38: 0.0034 | H38: 0.0205 | I38: 0.013 | J38: 0.0109 | K38: 0.0093 | L38: 1.3202 | M38: 0.2347 | N38: 0.7053 | O38: =P38*238.8459 -> 8152.933143 | P38: 34.1347 | Q38: =P38/3.6 -> 9.481861111 | R38: =S38*238.8459 -> 9035.755358 | S38: 37.8309 | T38: =S38/3.6 -> 10.50858333 | U38: =V38/0.0041868 -> 11808.25451 | V38: 49.4388 | W38: =V38/3.6 -> 13.733 | AC38: 100 | AD38: ОК
A39: 29 | O39: =P39*238.8459 -> 8152.933143 | P39: 34.1347 | Q39: =P39/3.6 -> 9.481861111 | R39: =S39*238.8459 -> 9035.755358 | S39: 37.8309 | T39: =S39/3.6 -> 10.50858333 | U39: =V39/0.0041868 -> 11808.25451 | V39: 49.4388 | W39: =V39/3.6 -> 13.733 | AC39: 0
A40: 30 | O40: 8152.933143 | P40: 34.1347 | Q40: 9.481861111 | R40: 9035.755358 | S40: 37.8309 | T40: 10.50858333 | U40: 11808.25451 | V40: 49.4388 | W40: 13.733 | AC40: 0
A41: 31 | O41: 8152.933143 | P41: 34.1347 | Q41: 9.481861111 | R41: 9035.755358 | S41: 37.8309 | T41: 10.50858333 | U41: 11808.25451 | V41: 49.4388 | W41: 13.733 | AC41: 0
A42: Рівень одоризації відповідає чинним нормативним документам | O42: =SUMPRODUCT(O11:O41,' розрахунок'!K7:K37)/' розрахунок'!K38 -> 8114.699414 | P42: =SUMPRODUCT(P11:P41,' розрахунок'!K7:K37)/' розрахунок'!K38 -> 33.97462303 | Q42: =SUMPRODUCT(Q11:Q41,' розрахунок'!K7:K37)/' розрахунок'!K38 -> 9.437395286 | R42: =SUMPRODUCT(R11:R41,' розрахунок'!K7:K37)/' розрахунок'!K38 -> 8991.618503 | S42: =SUMPRODUCT(S11:S41,' розрахунок'!K7:K37)/' розрахунок'!K38 -> 37.64610782 | T42: =SUMPRODUCT(T11:T41,' розрахунок'!K7:K37)/' розрахунок'!K38 -> 10.45725217
H43: Середньозважене значення теплоти згоряння:
B46: Начальник управління Сєвєродонецького ЛВУМГ Головко Ю.О.
C47: Підрозділу підприємства, якому підпорядкована лабораторія | O47: прізвище | R47: підпис | V47: дата
B48: Інженер ІІ кат.вимірювальної хіміко-аналітичної лабораторії Єрьоменко М.О.
C49: Лабораторія, де здійснювалось вимірювання газу | O49: прізвище | R49: підпис | V49: дата
B50: Начальник служби метрології Ісаєв В.С.
C51: Підрозділу, відповідального за облік газу за маршрутом | O51: прізвище | R51: підпис | V51: дата

Sheet розрахунок (hidden)
A2: Додаток до Паспорту фізико-хімічних показників природного газу по маршруту № 655
A4: Число місяця | B4: Теплота згоряння вища, МДж/м3 | C4: Луганська область | K4: Загальний обсяг газу, м3
C5: Обсяг газу переданого за добу, м3
C6: ГРС м. Новоайдар | D6: ГРС с. Михайлюки | E6: ГРС к-п ім. Суворова | F6: ГРС к-п Розквіт | G6: ГРС с. Червоний Жовтень | H6: ГРС м. Щастя ТЕС | I6: ГРС м.Щастя | J6: ГРС к-п ім. Артема
A7: 1 | B7: 37.7259 | C7: 44871.76 | D7: 1255.07 | E7: 15692.98 | F7: 3610.73 | G7: 6056.41 | H7: 56656.63 | I7: 11217.12 | J7: 9028.68 | K7: =SUM(C7:J7) -> 148389.38
A8: 2 | B8: 37.7259 | C8: 45655.42 | D8: 1316.35 | E8: 16229.16 | F8: 3739.61 | G8: 6515.53 | H8: 38317.91 | I8: 11480.44 | J8: 9419.68 | K8: 132674.1
A9: 3 | B9: 37.7259 | C9: 42315.77 | D9: 1318.32 | E9: 15630.36 | F9: 3685.98 | G9: 6365.29 | H9: 34896.21 | I9: 11212.79 | J9: 9523.03 | K9: 124947.75
A10: 4 | B10: 37.7259 | C10: 42791.99 | D10: 1175.74 | E10: 15493.59 | F10: 3496.56 | G10: 6624.35 | H10: 34827.74 | I10: 11401.41 | J10: 9520.04 | K10: 125331.42
A11: 5 | B11: 37.7259 | C11: 42715.91 | D11: 1236.01 | E11: 15268 | F11: 3387.89 | G11: 6703.19 | H11: 36521.75 | I11: 10888.89 | J11: 9255.06 | K11: 125976.7
A12: 6 | B12: 37.6103 | C12: 39915.7 | D12: 1133.24 | E12: 13844.47 | F12: 3303.76 | G12: 6213.1 | H12: 38736.08 | I12: 9821.86 | J12: 8668.53 | K12: 121636.74
A13: 7 | B13: 37.6103 | C13: 43562.02 | D13: 1223.28 | E13: 15435.92 | F13: 3354.78 | G13: 6264.71 | H13: 58950.97 | I13: 11365.96 | J13: 9271.49 | K13: 149429.13
A14: 8 | B14: 37.6103 | C14: 42943.84 | D14: 1135.71 | E14: 15188.5 | F14: 3396.18 | G14: 6543.05 | H14: 36062.36 | I14: 11156.08 | J14: 9523.8 | K14: 125949.52
A15: 9 | B15: 37.6103 | C15: 40584.83 | D15: 1140.27 | E15: 14121.6 | F15: 3305.84 | G15: 6307.53 | H15: 108068.6 | I15: 9945.65 | J15: 8881.85 | K15: 192356.17
A16: 10 | B16: 37.6103 | C16: 38414.56 | D16: 1101.1 | E16: 13097.34 | F16: 3233.73 | G16: 5988.01 | H16: 66229.89 | I16: 9715.53 | J16: 8701.31 | K16: 146481.47
A17: 11 | B17: 37.6103 | C17: 39446.18 | D17: 1072.47 | E17: 13452.56 | F17: 3196.23 | G17: 6073.93 | H17: 0 | I17: 10132.75 | J17: 9111.68 | K17: 82485.8
A18: 12 | B18: 37.6103 | C18: 42031.18 | D18: 1140.76 | E18: 14822.85 | F18: 3498.57 | G18: 6765.03 | H18: 212.36 | I18: 10704.51 | J18: 10023.83 | K18: 89199.09
A19: 13 | B19: 37.58 | C19: 43523.21 | D19: 1125.33 | E19: 14873.69 | F19: 3532.52 | G19: 6929.13 | H19: 108631.24 | I19: 10795 | J19: 10048.31 | K19: 199458.43
A20: 14 | B20: 37.58 | C20: 42003.5 | D20: 1168.8 | E20: 15313.77 | F20: 3476.82 | G20: 6786.36 | H20: 41131.89 | I20: 11071.88 | J20: 9998.91 | K20: 130951.93
A21: 15 | B21: 37.58 | C21: 38173.94 | D21: 1002.23 | E21: 13604.34 | F21: 3179 | G21: 5871.51 | H21: 57223.48 | I21: 9954.85 | J21: 9002.4 | K21: 138011.75
A22: 16 | B22: 37.58 | C22: 38450.02 | D22: 1081.11 | E22: 13866.39 | F22: 3319.51 | G22: 6160.71 | H22: 38178.02 | I22: 10156.14 | J22: 9641.94 | K22: 120853.84
A23: 17 | B23: 37.58 | C23: 38703.36 | D23: 1024.94 | E23: 13699.73 | F23: 3296.02 | G23: 5835.19 | H23: 48360.1 | I23: 10195.6 | J23: 9402.68 | K23: 130517.62
A24: 18 | B24: 37.58 | C24: 42602.32 | D24: 1218.7 | E24: 15553.38 | F24: 3490.46 | G24: 6513.82 | H24: 6420.1 | I24: 11578.88 | J24: 10577.61 | K24: 97955.27
A25: 19 | B25: 37.58 | C25: 45009.3 | D25: 1340.11 | E25: 16313.84 | F25: 3832.29 | G25: 7295.27 | H25: 4680.95 | I25: 12013.12 | J25: 11311.67 | K25: 101796.55
A26: 20 | B26: 37.58 | C26: 41978.69 | D26: 1012.1 | E26: 15101.32 | F26: 3544.8 | G26: 6648.56 | H26: 57816.74 | I26: 11177.24 | J26: 10776.79 | K26: 148056.24
A27: 21 | B27: 37.58 | C27: 39826.39 | D27: 1026.81 | E27: 14077.36 | F27: 3366.81 | G27: 6144.41 | H27: 35117.07 | I27: 10433.29 | J27: 9505.77 | K27: 119497.91
A28: 22 | B28: 37.58 | C28: 36964.8 | D28: 835.86 | E28: 12983.72 | F28: 3093.52 | G28: 5609.55 | H28: 33515.62 | I28: 9636.9 | J28: 8878.05 | K28: 111518.02
A29: 23 | B29: 37.58 | C29: 32759.23 | D29: 647.88 | E29: 10696.98 | F29: 2709.32 | G29: 4826.09 | H29: 36063.14 | I29: 8081.13 | J29: 7452.44 | K29: 103236.21
A30: 24 | B30: 37.58 | C30: 30641.33 | D30: 634.31 | E30: 10679.44 | F30: 2636.52 | G30: 4624.49 | H30: 33130.56 | I30: 8013.29 | J30: 7489.2 | K30: 97849.14
A31: 25 | B31: 37.58 | C31: 32877.88 | D31: 905.35 | E31: 11637.79 | F31: 2656.48 | G31: 4994.24 | H31: 5956.83 | I31: 8718.37 | J31: 8514.14 | K31: 76261.08
A32: 26 | B32: 37.58 | C32: 36706.06 | D32: 1039.47 | E32: 13532.35 | F32: 3130.74 | G32: 5858.01 | H32: 767.12 | I32: 9443.26 | J32: 9709.64 | K32: 80186.65
A33: 27 | B33: 37.58 | C33: 43224.03 | D33: 1240.56 | E33: 16097.99 | F33: 3622.04 | G33: 7086.1 | H33: 49759.99 | I33: 11098.68 | J33: 11579.36 | K33: 143708.75
A34: 28 | B34: 37.8309 | C34: 41749.34 | D34: 1214.51 | E34: 15649.86 | F34: 3601.15 | G34: 6862.57 | H34: 59835.82 | I34: 10966.79 | J34: 11257.67 | K34: 151137.71
A35: 29 | B35: 37.8309 | C35: 37767.68 | D35: 1113.84 | E35: 13568.9 | F35: 3419.76 | G35: 6116.71 | H35: 45342.32 | I35: 9836.31 | J35: 9498.95 | K35: =C35+D35+E35+F35+G35+H35+I35+J35 -> 126664.47
A36: 30 | B36: 37.8309 | C36: 40090.48 | D36: 1151.51 | E36: 15069.22 | F36: 3564.16 | G36: 6726.36 | H36: 45099.22 | I36: 10570.46 | J36: 10747.01 | K36: =C36+D36+E36+F36+G36+H36+I36+J36 -> 133018.42
A37: 31 | B37: 37.8309 | C37: 40241.04 | D37: 1123.41 | E37: 13820.69 | F37: 3149.75 | G37: 5962.27 | H37: 41071.08 | I37: 10128.29 | J37: 9597.18 | K37: =C37+D37+E37+F37+G37+H37+I37+J37 -> 125093.71
A38: Загальний обсяг газу, м3 | C38: =SUM(C7:C37) -> 1248541.76 | D38: 34155.15 | E38: 444418.09 | F38: 103831.53 | G38: 193271.48 | H38: 1257581.79 | I38: 322912.47 | J38: 295918.7 | K38: 3900630.97
A39: Енергія, МДж | C39: =SUMPRODUCT(B7:B37,C7:C37) -> 47000855.75 | D39: =SUMPRODUCT(B7:B37,D7:D37) -> 1285865.674 | E39: =SUMPRODUCT(B7:B37,E7:E37) -> 16730266.2 | F39: =SUMPRODUCT(B7:B37,F7:F37) -> 3908755.264 | G39: =SUMPRODUCT(B7:B37,G7:G37) -> 7275627.634 | H39: =SUMPRODUCT(B7:B37,H7:H37) -> 47346631.31 | I39: =SUMPRODUCT(B7:B37,I7:I37) -> 12155870.23 | J39: =SUMPRODUCT(B7:B37,J7:J37) -> 11139701.98 | K39: =SUMPRODUCT(B7:B37,K7:K37) -> 146843574
A40: Теплота згоряння (середньозважене значення за місяць), МДж/м³ | C40: =C39/C38 -> 37.64460049 | D40: 37.64778295 | E40: 37.64533122 | F40: 37.64516678 | G40: 37.64460041 | H40: 37.64894792 | I40: 37.64447447 | J40: =J39/J38 -> 37.64446783 | K40: =K39/K38 -> 37.64610782
A41: Теплота згоряння (середньозважене значення за місяць), ккал/м³ | C41: =C40*238.8459 -> 8991.258484 | D41: 8992.018601 | E41: 8991.433017 | F41: 8991.393739 | G41: 8991.258464 | H41: 8992.296849 | I41: 8991.228386 | J41: =J40*238.8459 -> 8991.226798 | K41: =K40*238.8459 -> 8991.618503
A42: Теплота згоряння (середньозважене значення за місяць), кВт*год./м³ | C42: =C40/3.6 -> 10.45683347 | D42: 10.45771749 | E42: 10.45703645 | F42: 10.45699077 | G42: 10.45683345 | H42: 10.45804109 | I42: 10.45679847 | J42: =J40/3.6 -> 10.45679662 | K42: =K40/3.6 -> 10.45725217

Sheet додаток
A2: Додаток до Паспорту фізико-хімічних показників природного газу №655
A4: Область | B4: ГРС, прямий споживач | C4: Cередньозважене значення вищої теплоти згоряння
C5: МДж/м³ | D5: ккал/м³ | E5: кВт*год./м³
A6: Луганська область | B6: ГРС м. Новоайдар | C6: 37.64 | D6: 8991 | E6: 10.46
B7: ГРС с. Михайлюки | C7: 37.65 | D7: 8992 | E7: 10.46
B8: ГРС к-п ім. Суворова | C8: 37.65 | D8: 8991 | E8: 10.46
B9: ГРС к-п Розквіт | C9: 37.65 | D9: 8991 | E9: 10.46
B10: ГРС с. Червоний Жовтень | C10: 37.64 | D10: 8991 | E10: 10.46
B11: ГРС м. Щастя ТЕС | C11: 37.65 | D11: 8992 | E11: 10.46
B12: ГРС м.Щастя | C12: 37.64 | D12: 8991 | E12: 10.46
B13: ГРС к-п ім. Артема | C13: 37.64 | D13: 8991 | E13: 10.46
A14: Середньозважене значення вищої теплоти згоряння по маршруту № 655 | C14: 37.65 | D14: 8992 | E14: 10.46
A18: Начальник управління Сєвєродонецького ЛВУМГ Головко Ю.О.
A19: Підрозділу підприємства, якому підпорядкована лабораторія | D19: прізвище | E19: підпис | F19: дата
A20: Інженер ІІ кат.вимірювальної хіміко-аналітичної лабораторії Єрьоменко М.О.
A21: Лабораторія, де здійснювалось вимірювання газу | D21: прізвище | E21: підпис | F21: дата
A22: Начальник служби метрології Ісаєв В.С.
A23: Підрозділу, відповідального за облік газу за маршрутом | D23: прізвище | E23: підпис | F23: дата

Sheet variablesList (hidden)
A1: 3 | B1: x:\gaysin | C1: 10, 11, 24, 25, 127, 128, 132, 180, 207, 215 | D1: x:\
B2: x:\Illinci
B3: x:\Talne
